[Event "10th Iberoamericano-ch 2024"]
[Site "Linares"]
[Date "2024.09.27"]
[Round "5.32"]
[White "Cabezas Solano, David Alejandro"]
[Black "Jimenez Fernandez, Rebeca"]
[Result "0-1"]
[ECO "E06"]
[WhiteElo "2248"]
[BlackElo "2097"]
[Annotator "ChessBase"]
[PlyCount "104"]
[EventDate "2024.09.25"]
[EventType "swiss"]
[EventCountry "ESP"]
[SourceTitle "playchess.com"]
[Source "ChessBase"]
[SourceQuality "1"]
[TimeControl "5400+30"]

1. d4 {[%emt 0:00:10]} Nf6 {[%emt 0:00:12]} 2. c4 {[%emt 0:00:06]} e6 {[%emt 0:00:04]} 3. Nf3 {[%emt 0:00:04]} d5 {[%emt 0:00:03]} 4. g3 {[%emt 0:00:07]} Be7 {[%emt 0:00:03]} 5. Bg2 {[%emt 0:00:05]} O-O {[%emt 0:00:06]} 6. Nc3 {[%emt 0:00:08]} dxc4 {[%emt 0:09:53]} 7. Ne5 {[%emt 0:00:12]} c5 {[%emt 0:02:32]} 8. dxc5 {[%emt 0:00:11]} Qc7 {[%emt 0:00:43]} 9. Nxc4 {[%emt 0:00:25]} Qxc5 {[%emt 0:00:39]} 10. b3 {[%emt 0:00:37]} Rd8 {[%emt 0:02:03]} 11. Qc2 {[%emt 0:00:28]} Nc6 {[%emt 0:06:58]} 12. O-O {[%emt 0:03:55]} Bd7 {[%emt 0:09:56]} 13. Rd1 {[%emt 0:15:13]} Nb4 {[%emt 0:02:42]} 14. Qb2 {[%emt 0:01:00]} Bc6 {[%emt 0:01:32]} 15. a3 {[%emt 0:08:18]} Ng4 {[%emt 0:11:17]} 16. Rf1 {[%emt 0:22:19]} Bxg2 {[%emt 0:03:48]} 17. Kxg2 {[%emt 0:00:14]} Nd5 {[%emt 0:02:49]} 18. Bd2 {[%emt 0:14:51]} Bf6 {[%emt 0:06:45]} 19. Rac1 {[%emt 0:05:44]} b5 {[%emt 0:07:03]} 20. Na5 {[%emt 0:01:07]} Rac8 {[%emt 0:03:09]} 21. b4 {[%emt 0:07:41]} Qd4 {[%emt 0:08:14]} 22. e3 {[%emt 0:10:23]} Ndxe3+ {[%emt 0:03:35]} 23. Bxe3 {[%emt 0:00:27]} Nxe3+ {[%emt 0:00:13]} 24. fxe3 {[%emt 0:00:02]} Qxe3 {[%emt 0:00:22]} 25. Qf2 {[%emt 0:06:46]} Rxc3 {[%emt 0:08:39]} 26. Qxe3 {[%emt 0:01:54]} Rxe3 {[%emt 0:00:06]} 27. Rc7 {[%emt 0:00:06]} h5 {[%emt 0:01:24]} 28. Rxa7 {[%emt 0:00:31]} Rxa3 {[%emt 0:05:48]} 29. Rb7 {[%emt 0:00:22]} Rd2+ {[%emt 0:00:49]} 30. Rf2 {[%emt 0:00:41]} Rd5 {[%emt 0:00:52]} 31. Nc6 {[%emt 0:00:10]} Rad3 {[%emt 0:01:21]} 32. Ne7+ {[%emt 0:01:30]} Bxe7 {[%emt 0:00:12]} 33. Rxe7 {[%emt 0:00:02]} Rd2 {[%emt 0:01:00]} 34. Rexf7 {[%emt 0:00:01]} Rxf2+ {[%emt 0:00:10]} 35. Rxf2 {[%emt 0:00:02]} Rd4 {[%emt 0:00:12]} 36. Re2 {[%emt 0:01:56]} Kf7 {[%emt 0:00:35]} 37. Re5 {[%emt 0:00:01]} Rxb4 {[%emt 0:00:27]} 38. Rxh5 {[%emt 0:00:02]} Rb1 {[%emt 0:00:46]} 39. Kf3 {[%emt 0:00:13]} b4 {[%emt 0:01:07]} 40. Rb5 {[%emt 0:00:08]} b3 {[%emt 0:00:41]} 41. h4 {[%emt 0:01:04]} Kf6 {[%emt 0:00:51]} 42. Kg4 {[%emt 0:00:26]} b2 {[%emt 0:00:53]} 43. Rb6 {[%emt 0:01:19]} Ke5 {[%emt 0:00:45]} 44. Rb4 {[%emt 0:00:11]} Kd5 {[%emt 0:00:22]} 45. Kg5 {[%emt 0:00:36]} e5 {[%emt 0:00:18]} 46. Kg6 {[%emt 0:00:54]} e4 {[%emt 0:00:36]} 47. Kxg7 {[%emt 0:00:37]} e3 {[%emt 0:00:10]} 48. h5 {[%emt 0:00:33]} e2 {[%emt 0:00:12]} 49. h6 {[%emt 0:00:28]} e1=Q {[%emt 0:00:15]} 50. Rb5+ {[%emt 0:00:06]} Kc6 {[%emt 0:00:39]} 51. Rg5 {[%emt 0:00:34]} Qe7+ {[%emt 0:00:13]} 52. Kg6 {[%emt 0:00:06]} Rh1 {[%emt 0:00:24]} 0-1

[Event "10th Iberoamericano-ch 2024"]
[Site "Linares"]
[Date "2024.09.27"]
[Round "5.33"]
[White "Suarez Gomez, Paula"]
[Black "Bendayan Claros, Aaron"]
[Result "1/2-1/2"]
[ECO "B13"]
[WhiteElo "2111"]
[BlackElo "2200"]
[Annotator "ChessBase"]
[PlyCount "71"]
[EventDate "2024.09.25"]
[EventType "swiss"]
[EventCountry "ESP"]
[SourceTitle "playchess.com"]
[Source "ChessBase"]
[SourceQuality "1"]
[TimeControl "5400+30"]

1. e4 {[%emt 0:00:02]} c6 {[%emt 0:00:19]} 2. d4 {[%emt 0:00:08]} d5 {[%emt 0:00:13]} 3. exd5 {[%emt 0:00:12]} cxd5 {[%emt 0:00:08]} 4. Bd3 {[%emt 0:00:06]} Nc6 {[%emt 0:00:08]} 5. c3 {[%emt 0:00:04]} Nf6 {[%emt 0:00:21]} 6. Bf4 {[%emt 0:00:15]} Bg4 {[%emt 0:00:19]} 7. Qb3 {[%emt 0:00:15]} e5 {[%emt 0:00:14]} 8. dxe5 {[%emt 0:03:22]} Nh5 {[%emt 0:00:35]} 9. Be3 {[%emt 0:02:16]} Nxe5 {[%emt 0:01:14]} 10. Bb5+ {[%emt 0:02:58]} Nc6 {[%emt 0:01:27]} 11. h3 {[%emt 0:05:51]} Be6 {[%emt 0:02:59]} 12. Qa4 {[%emt 0:02:37]} Qc7 {[%emt 0:09:23]} 13. Ne2 {[%emt 0:01:44]} Bd6 {[%emt 0:08:31]} 14. Nd2 {[%emt 0:04:14]} a6 {[%emt 0:03:51]} 15. Bd3 {[%emt 0:04:09]} O-O {[%emt 0:03:45]} 16. Qh4 {[%emt 0:06:36]} g6 {[%emt 0:03:45]} 17. Nf3 {[%emt 0:13:47]} Ne5 {[%emt 0:08:18]} 18. Nxe5 {[%emt 0:00:11]} Bxe5 {[%emt 0:00:03]} 19. O-O {[%emt 0:02:21]} Rfe8 {[%emt 0:08:02]} 20. f4 {[%emt 0:15:49]} Bg7 {[%emt 0:00:51]} 21. Qf2 {[%emt 0:00:07]} f5 {[%emt 0:01:42]} 22. Nd4 {[%emt 0:00:57]} Nf6 {[%emt 0:03:38]} 23. Nxe6 {[%emt 0:09:36]} Rxe6 {[%emt 0:00:45]} 24. Rad1 {[%emt 0:01:12]} Rae8 {[%emt 0:09:27]} 25. Rfe1 {[%emt 0:05:00]} Ne4 {[%emt 0:00:22]} 26. Bxe4 {[%emt 0:00:24]} dxe4 {[%emt 0:01:11]} 27. Qd2 {[%emt 0:00:51]} Bf6 {[%emt 0:07:01]} 28. Qd5 {[%emt 0:00:49]} Qf7 {[%emt 0:03:39]} 29. Qa5 {[%emt 0:02:32]} Qe7 {[%emt 0:06:10]} 30. Rd2 {[%emt 0:00:55]} Rd8 {[%emt 0:01:29]} 31. Red1 {[%emt 0:01:23]} Rd3 {[%emt 0:02:11]} 32. Qc5 {[%emt 0:07:38]} Red6 {[%emt 0:12:05]} 33. Rxd3 {[%emt 0:01:18]} exd3 {[%emt 0:00:33]} 34. Rxd3 {[%emt 0:02:31]} Rxd3 {[%emt 0:00:40]} 35. Qc4+ {[%emt 0:00:04]} Qf7 {[%emt 0:00:40]} 36. Qxd3 {[%emt 0:00:08]} 1/2-1/2

[Event "10th Iberoamericano-ch 2024"]
[Site "Linares"]
[Date "2024.09.27"]
[Round "5.34"]
[White "Sicilia Laino, Juan Diego"]
[Black "Prado Acebo, Ines"]
[Result "0-1"]
[ECO "B93"]
[WhiteElo "2090"]
[BlackElo "2189"]
[Annotator "ChessBase"]
[PlyCount "94"]
[EventDate "2024.09.25"]
[EventType "swiss"]
[EventCountry "ESP"]
[SourceTitle "playchess.com"]
[Source "ChessBase"]
[SourceQuality "1"]
[TimeControl "5400+30"]

1. e4 {[%emt 0:00:07]} c5 {[%emt 0:00:07]} 2. Nf3 {[%emt 0:00:08]} d6 {[%emt 0:00:06]} 3. d4 {[%emt 0:00:05]} cxd4 {[%emt 0:00:06]} 4. Nxd4 {[%emt 0:00:06]} Nf6 {[%emt 0:00:06]} 5. Nc3 {[%emt 0:00:08]} a6 {[%emt 0:00:05]} 6. f4 {[%emt 0:01:13]} e5 {[%emt 0:03:42]} 7. Nf5 {[%emt 0:00:06]} Nc6 {[%emt 0:00:20]} 8. Bc4 {[%emt 0:00:45]} Bxf5 {[%emt 0:00:39]} 9. exf5 {[%emt 0:00:07]} Qa5 {[%emt 0:00:09]} 10. Bb3 {[%emt 0:35:58]} Be7 {[%emt 0:09:00]} 11. O-O {[%emt 0:01:34]} O-O {[%emt 0:01:22]} 12. Be3 {[%emt 0:08:29]} exf4 {[%emt 0:11:59]} 13. Rxf4 {[%emt 0:02:07]} Qe5 {[%emt 0:00:20]} 14. Qf3 {[%emt 0:04:00]} Rfe8 {[%emt 0:04:49]} 15. g4 {[%emt 0:02:00]} d5 {[%emt 0:06:36]} 16. g5 {[%emt 0:15:07]} Bb4 {[%emt 0:05:09]} 17. Bf2 {[%emt 0:14:19]} Bxc3 {[%emt 0:04:56]} 18. bxc3 {[%emt 0:02:09]} Ne4 {[%emt 0:00:50]} 19. g6 {[%emt 0:00:42]} Nxc3 {[%emt 0:08:18]} 20. gxf7+ {[%emt 0:01:11]} Kxf7 {[%emt 0:00:22]} 21. Re1 {[%emt 0:00:44]} Qd6 {[%emt 0:04:19]} 22. Re6 {[%emt 0:03:26]} Rxe6 {[%emt 0:01:51]} 23. fxe6+ {[%emt 0:00:07]} Kg8 {[%emt 0:00:08]} 24. Rg4 {[%emt 0:04:45]} Qxe6 {[%emt 0:10:51]} 25. Qh3 {[%emt 0:02:42]} Qe5 {[%emt 0:01:56]} 26. Qd3 {[%emt 0:00:52]} Rf8 {[%emt 0:01:39]} 27. a4 {[%emt 0:00:32]} Kh8 {[%emt 0:02:34]} 28. Rh4 {[%emt 0:00:27]} h6 {[%emt 0:00:14]} 29. Qg6 {[%emt 0:00:15]} Rf6 {[%emt 0:00:45]} 30. Qg4 {[%emt 0:00:01]} Rf5 {[%emt 0:01:15]} 31. Bg3 {[%emt 0:00:21]} Ne2+ {[%emt 0:04:47]} 32. Kg2 {[%emt 0:00:01]} Nxg3 {[%emt 0:00:12]} 33. hxg3 {[%emt 0:00:06]} Rf8 {[%emt 0:00:43]} 34. Rh5 {[%emt 0:00:50]} Qf6 {[%emt 0:01:39]} 35. Rh1 {[%emt 0:00:58]} Qf2+ {[%emt 0:01:36]} 36. Kh3 {[%emt 0:00:00]} Ne5 {[%emt 0:00:13]} 37. Qe6 {[%emt 0:01:07]} Nf3 {[%emt 0:00:59]} 38. Qxd5 {[%emt 0:00:12]} Ng1+ {[%emt 0:03:03]} 39. Rxg1 {[%emt 0:01:34]} Qxg1 {[%emt 0:00:02]} 40. Qxb7 {[%emt 0:00:12]} Qf1+ {[%emt 0:00:15]} 41. Qg2 {[%emt 0:00:29]} Qf5+ {[%emt 0:00:50]} 42. g4 {[%emt 0:00:19]} Qc5 {[%emt 0:00:22]} 43. Qe2 {[%emt 0:01:07]} Qc6 {[%emt 0:02:03]} 44. Qg2 {[%emt 0:00:30]} Rf3+ {[%emt 0:01:00]} 45. Kh2 {[%emt 0:00:01]} Qf6 {[%emt 0:00:25]} 46. Kg1 {[%emt 0:00:13]} Qf4 {[%emt 0:00:09]} 47. Qe2 {[%emt 0:00:17]} Qxg4+ {[%emt 0:00:09]} 0-1

[Event "10th Iberoamericano-ch 2024"]
[Site "Linares"]
[Date "2024.09.27"]
[Round "5.35"]
[White "Rodriguez Redondo, Adhara"]
[Black "Jodorcovsky Werjivker, Paulo"]
[Result "1-0"]
[ECO "B29"]
[WhiteElo "2184"]
[BlackElo "2092"]
[Annotator "ChessBase"]
[PlyCount "59"]
[EventDate "2024.09.25"]
[EventType "swiss"]
[EventCountry "ESP"]
[SourceTitle "playchess.com"]
[Source "ChessBase"]
[SourceQuality "1"]
[TimeControl "5400+30"]

1. e4 {[%emt 0:00:11]} c5 {[%emt 0:00:27]} 2. Nf3 {[%emt 0:00:06]} Nf6 {[%emt 0:00:16]} 3. Nc3 {[%emt 0:00:32]} Nc6 {[%emt 0:00:17]} 4. d4 {[%emt 0:00:15]} d5 {[%emt 0:00:04]} 5. exd5 {[%emt 0:10:08]} Nxd5 {[%emt 0:00:55]} 6. Nxd5 {[%emt 0:00:46]} Qxd5 {[%emt 0:00:06]} 7. Be3 {[%emt 0:01:36]} cxd4 {[%emt 0:00:15]} 8. Nxd4 {[%emt 0:01:48]} a6 {[%emt 0:00:13]} 9. Be2 {[%emt 0:09:41]} e5 {[%emt 0:01:32]} 10. Nxc6 {[%emt 0:15:43]} Qxc6 {[%emt 0:00:20]} 11. O-O {[%emt 0:01:24]} Be6 {[%emt 0:03:27]} 12. c4 {[%emt 0:02:11]} Be7 {[%emt 0:04:17]} 13. b4 {[%emt 0:09:32]} Bxb4 {[%emt 0:11:40]} 14. Rb1 {[%emt 0:02:18]} Ba5 {[%emt 0:09:59]} 15. Qb3 {[%emt 0:03:47]} Rb8 {[%emt 0:18:36]} 16. Ba7 {[%emt 0:03:51]} Rc8 {[%emt 0:01:56]} 17. Qxb7 {[%emt 0:04:33]} O-O {[%emt 0:01:50]} 18. Qxc6 {[%emt 0:05:01]} Rxc6 {[%emt 0:00:04]} 19. c5 {[%emt 0:00:57]} f5 {[%emt 0:02:42]} 20. a4 {[%emt 0:03:21]} Ra8 {[%emt 0:06:21]} 21. Bb6 {[%emt 0:01:19]} Bc3 {[%emt 0:00:33]} 22. Rfd1 {[%emt 0:03:12]} Rcc8 {[%emt 0:02:20]} 23. Rd6 {[%emt 0:01:19]} Ba2 {[%emt 0:09:16]} 24. Rc1 {[%emt 0:00:54]} Bd4 {[%emt 0:00:26]} 25. a5 {[%emt 0:00:59]} Re8 {[%emt 0:03:55]} 26. c6 {[%emt 0:02:59]} Be6 {[%emt 0:05:11]} 27. Bxd4 {[%emt 0:03:21]} exd4 {[%emt 0:00:04]} 28. Rxe6 {[%emt 0:00:47]} Rxe6 {[%emt 0:00:07]} 29. Bc4 {[%emt 0:00:03]} Kf7 {[%emt 0:01:01]} 30. Re1 {[%emt 0:00:43]} 1-0

[Event "10th Iberoamericano-ch 2024"]
[Site "Linares"]
[Date "2024.09.27"]
[Round "5.36"]
[White "Ticona Rocabado, Licael Roderick"]
[Black "Li Chen, Helena Joana"]
[Result "1-0"]
[ECO "A04"]
[WhiteElo "2321"]
[BlackElo "2068"]
[Annotator "ChessBase"]
[PlyCount "73"]
[EventDate "2024.09.25"]
[EventType "swiss"]
[EventCountry "ESP"]
[SourceTitle "playchess.com"]
[Source "ChessBase"]
[SourceQuality "1"]
[TimeControl "5400+30"]

1. Nf3 {[%emt 0:07:44]} f5 {[%emt 0:00:10]} 2. g3 {[%emt 0:00:07]} Nf6 {[%emt 0:00:06]} 3. Bg2 {[%emt 0:00:08]} g6 {[%emt 0:00:11]} 4. O-O {[%emt 0:00:07]} Bg7 {[%emt 0:00:05]} 5. d3 {[%emt 0:00:09]} d6 {[%emt 0:01:29]} 6. Nbd2 {[%emt 0:00:33]} e5 {[%emt 0:01:20]} 7. c3 {[%emt 0:00:34]} c6 {[%emt 0:01:25]} 8. e4 {[%emt 0:00:15]} O-O {[%emt 0:04:12]} 9. exf5 {[%emt 0:00:13]} gxf5 {[%emt 0:04:21]} 10. Re1 {[%emt 0:01:28]} Kh8 {[%emt 0:00:30]} 11. Nf1 Na6 {[%emt 0:06:28]} 12. Nh4 {[%emt 0:01:51]} Nc7 {[%emt 0:04:54]} 13. Ne3 {[%emt 0:00:21]} Nfd5 {[%emt 0:01:45]} 14. Nxd5 {[%emt 0:03:02]} Nxd5 {[%emt 0:00:19]} 15. d4 {[%emt 0:02:43]} Bf6 {[%emt 0:11:37]} 16. dxe5 {[%emt 0:01:42]} dxe5 {[%emt 0:00:37]} 17. Nf3 {[%emt 0:03:09]} Qc7 {[%emt 0:00:56]} 18. c4 {[%emt 0:07:38]} Ne7 {[%emt 0:01:24]} 19. Bg5 {[%emt 0:00:27]} Ng6 {[%emt 0:02:55]} 20. Bxf6+ {[%emt 0:01:26]} Rxf6 {[%emt 0:00:04]} 21. Nxe5 {[%emt 0:00:15]} Nxe5 {[%emt 0:12:19]} 22. Qd4 {[%emt 0:00:06]} Be6 {[%emt 0:07:17]} 23. Rxe5 {[%emt 0:00:35]} Kg7 {[%emt 0:00:30]} 24. Rae1 {[%emt 0:01:00]} Qd7 {[%emt 0:02:25]} 25. Qf4 {[%emt 0:07:42]} Raf8 {[%emt 0:02:43]} 26. Bf1 {[%emt 0:01:15]} Rg6 {[%emt 0:01:47]} 27. Be2 {[%emt 0:01:08]} Rgf6 {[%emt 0:04:39]} 28. Bh5 {[%emt 0:02:10]} Kh8 {[%emt 0:01:38]} 29. b3 {[%emt 0:00:53]} Qd6 {[%emt 0:01:47]} 30. Rd1 {[%emt 0:01:03]} Qb8 {[%emt 0:01:49]} 31. Qd4 {[%emt 0:01:18]} Kg7 {[%emt 0:02:29]} 32. Rde1 {[%emt 0:02:08]} Qc8 {[%emt 0:05:56]} 33. Qxa7 {[%emt 0:02:16]} Bf7 {[%emt 0:01:05]} 34. Bxf7 {[%emt 0:01:52]} R6xf7 {[%emt 0:00:09]} 35. Qe3 {[%emt 0:00:16]} Qd8 {[%emt 0:01:02]} 36. Re8 {[%emt 0:00:20]} Qf6 {[%emt 0:02:29]} 37. Rxf8 {[%emt 0:00:19]} 1-0

[Event "10th Iberoamericano-ch 2024"]
[Site "Linares"]
[Date "2024.09.27"]
[Round "5.37"]
[White "Castillo Beitia, Ashley Alexandra"]
[Black "Ruiz Buendia, Miguel"]
[Result "0-1"]
[ECO "D00"]
[WhiteElo "2071"]
[BlackElo "2269"]
[Annotator "ChessBase"]
[PlyCount "72"]
[EventDate "2024.09.25"]
[EventType "swiss"]
[EventCountry "ESP"]
[SourceTitle "playchess.com"]
[Source "ChessBase"]
[SourceQuality "1"]
[TimeControl "5400+30"]

1. d4 {[%emt 0:00:03]} d5 {[%emt 0:05:44]} 2. Bf4 {[%emt 0:00:10]} Nf6 {[%emt 0:00:37]} 3. e3 {[%emt 0:00:15]} c5 {[%emt 0:00:16]} 4. c3 {[%emt 0:00:12]} Nc6 {[%emt 0:00:05]} 5. Nd2 {[%emt 0:00:05]} Bf5 {[%emt 0:01:01]} 6. a4 {[%emt 0:04:14]} Qb6 {[%emt 0:05:09]} 7. Ra2 {[%emt 0:00:11]} e6 {[%emt 0:02:04]} 8. Ngf3 {[%emt 0:05:00]} h6 {[%emt 0:02:02]} 9. h3 {[%emt 0:01:32]} Be7 {[%emt 0:00:24]} 10. Be2 {[%emt 0:04:01]} O-O {[%emt 0:00:29]} 11. O-O {[%emt 0:04:45]} Rfc8 {[%emt 0:04:12]} 12. Nb3 {[%emt 0:05:41]} c4 {[%emt 0:01:10]} 13. Nbd2 {[%emt 0:04:00]} a6 {[%emt 0:02:17]} 14. Ne5 {[%emt 0:06:41]} Nxe5 {[%emt 0:07:46]} 15. a5 {[%emt 0:04:46]} Qc6 {[%emt 0:01:12]} 16. dxe5 {[%emt 0:02:57]} Nd7 {[%emt 0:01:20]} 17. Nf3 {[%emt 0:04:56]} Bh7 {[%emt 0:01:07]} 18. Bg3 {[%emt 0:01:46]} Nc5 {[%emt 0:01:21]} 19. Nd4 {[%emt 0:02:36]} Qd7 {[%emt 0:02:45]} 20. Re1 {[%emt 0:01:43]} Rab8 {[%emt 0:01:24]} 21. Qa1 {[%emt 0:04:40]} b5 {[%emt 0:02:09]} 22. axb6 {[%emt 0:02:34]} Rxb6 {[%emt 0:00:35]} 23. Bd1 {[%emt 0:01:26]} Rcb8 {[%emt 0:05:11]} 24. Bc2 {[%emt 0:04:34]} Bxc2 {[%emt 0:00:35]} 25. Nxc2 {[%emt 0:00:03]} Nd3 {[%emt 0:00:56]} 26. Rb1 {[%emt 0:00:50]} Qb7 {[%emt 0:01:12]} 27. Kh2 {[%emt 0:00:32]} h5 {[%emt 0:01:33]} 28. f3 {[%emt 0:00:56]} h4 {[%emt 0:02:16]} 29. Be1 {[%emt 0:00:12]} Nxe5 {[%emt 0:01:44]} 30. Nb4 {[%emt 0:01:28]} Bxb4 {[%emt 0:01:08]} 31. cxb4 {[%emt 0:00:03]} Nd3 {[%emt 0:01:28]} 32. Bxh4 {[%emt 0:01:00]} Nxb4 {[%emt 0:01:29]} 33. Ra5 {[%emt 0:00:16]} Nc2 {[%emt 0:01:10]} 34. Qa4 {[%emt 0:00:23]} Rxb2 {[%emt 0:00:56]} 35. Rxb2 {[%emt 0:00:38]} Qxb2 {[%emt 0:00:06]} 36. Bf2 {[%emt 0:00:52]} Nxe3 {[%emt 0:01:35]} 0-1

[Event "10th Iberoamericano-ch 2024"]
[Site "Linares"]
[Date "2024.09.27"]
[Round "5.38"]
[White "Garzon Zapatanga, Christopher Leonel"]
[Black "Mayorga Araya, Sofia"]
[Result "1-0"]
[ECO "B54"]
[WhiteElo "2216"]
[BlackElo "2059"]
[Annotator "ChessBase"]
[PlyCount "69"]
[EventDate "2024.09.25"]
[EventType "swiss"]
[EventCountry "ESP"]
[SourceTitle "playchess.com"]
[Source "ChessBase"]
[SourceQuality "1"]
[TimeControl "5400+30"]

1. e4 {[%emt 0:00:17]} c5 {[%emt 0:00:05]} 2. Nf3 {[%emt 0:00:04]} d6 {[%emt 0:00:04]} 3. d4 {[%emt 0:00:05]} cxd4 {[%emt 0:00:04]} 4. Nxd4 {[%emt 0:00:03]} Nf6 {[%emt 0:00:05]} 5. f3 {[%emt 0:00:04]} e5 {[%emt 0:00:09]} 6. Nb3 {[%emt 0:00:06]} d5 {[%emt 0:00:04]} 7. Bg5 {[%emt 0:00:28]} d4 {[%emt 0:00:33]} 8. c3 {[%emt 0:00:29]} Nc6 {[%emt 0:06:34]} 9. Bb5 {[%emt 0:00:54]} Qb6 {[%emt 0:07:55]} 10. Bxc6+ {[%emt 0:01:50]} bxc6 {[%emt 0:00:55]} 11. cxd4 {[%emt 0:00:29]} Be7 {[%emt 0:10:28]} 12. Nc3 {[%emt 0:06:40]} Ba6 {[%emt 0:02:14]} 13. dxe5 {[%emt 0:41:18]} Ng4 {[%emt 0:01:19]} 14. fxg4 {[%emt 0:00:23]} Bxg5 {[%emt 0:00:14]} 15. Qd4 {[%emt 0:00:31]} c5 {[%emt 0:10:04]} 16. Qxc5 {[%emt 0:06:27]} Qh6 {[%emt 0:00:22]} 17. Nd5 {[%emt 0:10:16]} Be7 {[%emt 0:04:59]} 18. g3 {[%emt 0:04:57]} Bd8 {[%emt 0:00:52]} 19. Qd6 {[%emt 0:00:30]} Qxd6 {[%emt 0:00:51]} 20. exd6 {[%emt 0:00:04]} O-O {[%emt 0:01:59]} 21. Kf2 {[%emt 0:00:59]} Bc4 {[%emt 0:07:35]} 22. Rhd1 {[%emt 0:05:22]} Re8 {[%emt 0:01:09]} 23. Kf3 {[%emt 0:01:17]} h5 {[%emt 0:04:18]} 24. gxh5 {[%emt 0:00:58]} f5 {[%emt 0:00:24]} 25. exf5 {[%emt 0:02:38]} Be2+ {[%emt 0:00:08]} 26. Kf4 {[%emt 0:00:05]} Bxd1 {[%emt 0:00:06]} 27. Rxd1 {[%emt 0:00:05]} Rc8 {[%emt 0:01:31]} 28. d7 {[%emt 0:02:18]} Rc4+ {[%emt 0:00:09]} 29. Rd4 {[%emt 0:00:06]} Rxd4+ {[%emt 0:00:29]} 30. Nxd4 {[%emt 0:00:03]} Rf8 {[%emt 0:02:57]} 31. Nc6 {[%emt 0:02:16]} Rf7 {[%emt 0:02:06]} 32. Ne5 {[%emt 0:00:27]} Rf8 {[%emt 0:00:08]} 33. Ke4 {[%emt 0:00:23]} Kh7 {[%emt 0:01:55]} 34. Nf4 {[%emt 0:00:36]} Kh6 {[%emt 0:02:14]} 35. Ne6 {[%emt 0:00:15]} 1-0

[Event "10th Iberoamericano-ch 2024"]
[Site "Linares"]
[Date "2024.09.27"]
[Round "5.39"]
[White "Vehi Bach, Victor Manuel"]
[Black "Aragon Trujillo, Ricardo M."]
[Result "1/2-1/2"]
[ECO "B90"]
[WhiteElo "2191"]
[BlackElo "2057"]
[Annotator "ChessBase"]
[PlyCount "64"]
[EventDate "2024.09.25"]
[EventType "swiss"]
[EventCountry "ESP"]
[SourceTitle "playchess.com"]
[Source "ChessBase"]
[SourceQuality "1"]
[TimeControl "5400+30"]

1. e4 {[%emt 0:00:03]} c5 {[%emt 0:01:54]} 2. Nf3 {[%emt 0:00:08]} d6 {[%emt 0:00:04]} 3. d4 {[%emt 0:00:07]} Nf6 {[%emt 0:00:09]} 4. Nc3 {[%emt 0:00:05]} cxd4 {[%emt 0:00:22]} 5. Nxd4 {[%emt 0:00:07]} a6 {[%emt 0:00:06]} 6. h3 {[%emt 0:00:36]} e5 {[%emt 0:00:10]} 7. Nb3 {[%emt 0:00:12]} Be6 {[%emt 0:00:07]} 8. f4 {[%emt 0:00:44]} Nbd7 {[%emt 0:00:15]} 9. f5 {[%emt 0:05:02]} Bxb3 {[%emt 0:00:03]} 10. axb3 {[%emt 0:00:08]} d5 {[%emt 0:00:07]} 11. exd5 {[%emt 0:07:29]} Bb4 {[%emt 0:00:08]} 12. Be2 {[%emt 0:20:05]} Ne4 {[%emt 0:05:42]} 13. O-O {[%emt 0:00:21]} Nxc3 {[%emt 0:03:16]} 14. bxc3 {[%emt 0:00:09]} Bxc3 {[%emt 0:00:03]} 15. Rb1 {[%emt 0:04:22]} Nf6 {[%emt 0:02:57]} 16. Bg5 {[%emt 0:07:47]} e4 {[%emt 0:08:59]} 17. d6 {[%emt 0:13:14]} Qb6+ {[%emt 0:25:30]} 18. Kh1 {[%emt 0:00:13]} Rd8 {[%emt 0:00:10]} 19. Bxf6 {[%emt 0:02:34]} gxf6 {[%emt 0:01:27]} 20. Qd5 {[%emt 0:00:39]} Qe3 {[%emt 0:00:37]} 21. Bh5 {[%emt 0:13:59]} Rd7 {[%emt 0:11:46]} 22. b4 {[%emt 0:00:07]} Be5 {[%emt 0:03:37]} 23. Rb3 {[%emt 0:00:43]} Qg5 {[%emt 0:00:35]} 24. Be2 {[%emt 0:02:26]} Qh4 {[%emt 0:01:59]} 25. Re3 {[%emt 0:00:57]} Rg8 {[%emt 0:05:28]} 26. Qxe4 {[%emt 0:02:07]} Qxe4 {[%emt 0:01:12]} 27. Rxe4 {[%emt 0:00:09]} Rxd6 {[%emt 0:00:36]} 28. Bd3 {[%emt 0:02:28]} Ke7 {[%emt 0:02:26]} 29. Rh4 {[%emt 0:01:15]} b5 {[%emt 0:05:06]} 30. Re1 {[%emt 0:04:57]} Rc8 {[%emt 0:05:12]} 31. Kg1 {[%emt 0:00:56]} Rcd8 {[%emt 0:03:00]} 32. Ree4 {[%emt 0:02:54]} Rd4 {[%emt 0:03:41]} 1/2-1/2